bitfinex-derivatives/quotes_SOLF0:USTF0_20240904
["timestamp","ask_amount","ask_price","bid_price","bid_amount"]
[1725460038812,0.05358664,129.32,129.29,0.05765389]
[1725460039213,0.05358664,129.32,129.3,3.8668]
[1725460039417,0.05358664,129.32,129.31,3.77784653]
[1725460039616,0.05358664,129.32,129.29,0.05765389]
[1725460040421,0.05358664,129.32,129.3,3.867]
[1725460040624,0.05358664,129.32,129.29,0.05765389]
[1725460041316,0.05358664,129.32,129.3,3.8671]
[1725460041821,3.92018664,129.32,129.29,0.05765389]
[1725460042010,0.05358664,129.32,129.29,0.05765389]
[1725460042420,0.05358664,129.32,129.31,3.8668]
[1725460042620,0.05358664,129.32,129.31,7.75835557]
[1725460042810,0.05358664,129.32,129.31,3.8668]
[1725460043016,44.54,129.4,129.33,3.866]
[1725460043212,44.54,129.4,129.33,7.81070997]
[1725460043618,44.54,129.4,129.33,3.94470997]
[1725460043822,44.54,129.4,129.32,3.8665]
[1725460044020,48.4053,129.36,129.35,0.05062051]
[1725460044220,44.54,129.36,129.34,0.05611018]
[1725460044524,44.54,129.36,129.26,45.9245]
[1725460044525,3.8671,129.31,129.26,1.3845]
[1725460044726,3.8671,129.31,129.28,3.8675]
[1725460044923,44.54,129.33,129.26,1.3845]
[1725460045122,1.428,129.36,129.25,2.7746]
[1725460045123,44.54,129.31,129.25,2.7746]
[1725460045319,1.428,129.36,129.21,2.7373]
[1725460045517,44.54,129.28,129.21,2.7373]
[1725460045728,3.8684,129.26,129.22,3.8693]
[1725460046019,0.05236547,129.3,129.27,0.05012125]
[1725460046229,3.8675,129.29,129.27,0.05012125]
[1725460046732,3.8677,129.29,129.27,0.05012125]
[1725460046930,0.05236547,129.3,129.27,0.05012125]
[1725460047227,3.8676,129.29,129.27,0.05012125]
[1725460047829,0.05236547,129.3,129.27,0.05012125]
[1725460048230,3.8676,129.29,129.27,0.05012125]
[1725460048831,3.8677,129.28,129.27,0.05012125]
[1725460049032,0.05236547,129.3,129.27,0.05012125]
[1725460049732,0.05236547,129.3,129.28,3.92486846]
[1725460050238,0.05236547,129.3,129.27,0.05012125]
[1725460050635,37.13,129.29,129.27,0.05012125]
[1725460050831,0.05236547,129.3,129.27,0.05012125]
[1725460051240,0.05236547,129.3,129.28,3.84362426]
[1725460051441,3.8659,129.35,129.28,37.13]
[1725460051633,37.13,129.37,129.29,1.3333]
[1725460052139,40.95582791,129.37,129.29,1.3333]
[1725460052448,0.05133003,129.34,129.32,0.05075786]
[1725460052636,37.13,129.35,129.28,7.03943462]
[1725460052837,0.05864534,129.31,129.28,0.05316798]
[1725460053140,0.05864534,129.31,129.3,3.8671]
[1725460053539,0.05864534,129.31,129.28,3.90337609]
[1725460054039,0.05864534,129.31,129.3,3.8671]
[1725460056746,0.05864534,129.31,129.28,3.90337609]
[1725460057138,0.05864534,129.31,129.3,3.8671]
[1725460058644,3.8656,129.35,129.32,3.8664]
[1725460058842,39.9711,129.38,129.28,40.97686774]
[1725460059242,39.9711,129.38,129.28,3.84686774]
[1725460059545,39.9711,129.38,129.32,0.04967842]
[1725460059546,0.04921344,129.34,129.32,0.04967842]
[1725460060246,0.04921344,129.34,129.33,3.8662]
[1725460060639,3.91531344,129.34,129.32,0.04967842]
[1725460060838,0.04921344,129.34,129.32,0.04967842]
[1725460061442,0.04921344,129.34,129.33,3.8662]
[1725460061643,0.04921344,129.34,129.32,0.04967842]
[1725460061847,3.91531344,129.34,129.32,0.04967842]
[1725460062547,0.04921344,129.34,129.32,0.04967842]
[1725460063046,0.04921344,129.34,129.33,3.8662]
[1725460063247,2.6949,129.41,129.32,37.13]
[1725460063641,1.3125,129.41,129.32,37.13]
[1725460064144,1.3125,129.41,129.36,3.8651]
[1725460064348,0.05355699,129.4,129.37,0.04967627]
[1725460064646,3.8648,129.38,129.37,0.04967627]
[1725460065235,3.8648,129.38,129.31,3.78606234]
[1725460065236,37.13,129.38,129.31,3.78606234]
[1725460065438,37.13,129.37,129.3,1.3945]
[1725460065845,3.8664,129.33,129.3,5.2615]
[1725460066046,3.90117537,129.36,129.26,37.13]
[1725460066246,0.05135266,129.32,129.3,3.9241986]
[1725460066838,0.05135266,129.32,129.3,0.0572986]
[1725460067436,0.05135266,129.32,129.3,3.9242986]
[1725460067741,0.05135266,129.32,129.3,0.0572986]
[1725460067950,0.05135266,129.32,129.31,3.8668]
[1725460070951,3.865,129.37,129.3,37.13]
[1725460071162,1.4329,129.4,129.3,37.13]
[1725460071449,1.3125,129.41,129.32,37.13]
[1725460071643,3.8643,129.4,129.33,1.3416]
[1725460071849,1.3125,129.41,129.33,1.3416]
[1725460072049,0.04987416,129.38,129.35,0.05739711]
[1725460072540,0.04987416,129.38,129.36,3.8653]
[1725460072946,0.04987416,129.38,129.36,7.70779354]
[1725460073757,0.04987416,129.38,129.36,3.84249354]
[1725460074250,0.04987416,129.38,129.35,0.05739711]
[1725460074954,0.04987416,129.38,129.37,3.865]
[1725460075147,0.04987416,129.38,129.37,7.66892763]
[1725460080450,37.13,129.46,129.37,3.80392763]
[1725460080656,2.7164,129.45,129.36,37.13]
[1725460080856,3.8634,129.43,129.36,37.13]
[1725460081053,2.7164,129.45,129.36,37.13]
[1725460081254,2.7164,129.45,129.36,41.01721614]
[1725460081453,37.13,129.44,129.39,0.05883468]
[1725460081855,3.8643,129.4,129.39,0.05883468]
[1725460082053,2.7164,129.45,129.39,3.92323468]
[1725460082458,1.3134,129.45,129.39,0.05883468]
[1725460082654,1.3134,129.45,129.43,3.8631]
[1725460082956,3.8625,129.46,129.43,0.05375845]
[1725460083155,1.3095,129.49,129.43,3.92482651]
[1725460083354,3.8629,129.44,129.43,0.05375845]
[1725460083554,7.723,129.48,129.43,0.05375845]
[1725460084052,7.723,129.48,129.44,3.8628]
[1725460084255,1.3095,129.49,129.44,3.8628]
[1725460084450,1.3095,129.49,129.43,0.05375845]
[1725460084653,3.8622,129.47,129.44,3.8628]
[1725460084963,3.8622,129.47,129.43,0.05375845]
[1725460085155,3.8619,129.48,129.45,3.8625]
[1725460085351,1.3095,129.49,129.45,3.91721118]
[1725460085659,3.8623,129.46,129.45,0.05471118]
[1725460086252,3.8643,129.4,129.33,1.3404]
[1725460086462,3.86562104,129.46,129.33,5.11212401]
[1725460086657,1.3095,129.49,129.33,1.3404]
[1725460086864,3.8646,129.39,129.36,3.8652]
[1725460087064,3.8646,129.39,129.36,3.7763609]
[1725460087359,0.04975691,129.39,129.37,3.8648]
[1725460088258,7.7212,129.52,129.38,37.13]
[1725460088468,38.4865,129.46,129.37,3.88249103]
[1725460088657,3.8646,129.39,129.36,3.8653]
[1725460088856,3.8646,129.39,129.36,3.89099594]
[1725460089063,42.40599976,129.43,129.33,1.3404]
[1725460089261,42.40599976,129.43,129.37,0.051344]
[1725460089464,0.02435283,129.39,129.37,0.051344]
[1725460089869,3.88895283,129.39,129.37,0.051344]
[1725460090366,0.02435283,129.39,129.37,0.051344]
[1725460090569,3.8647,129.38,129.37,0.051344]
[1725460090763,0.02435283,129.39,129.37,0.051344]
[1725460090964,0.02435283,129.39,129.37,3.916344]
[1725460091277,0.02435283,129.39,129.37,0.051344]
[1725460091663,0.02435283,129.39,129.38,3.8647]
[1725460092160,0.02435283,129.39,129.38,40.9947]
[1725460092562,1.4043,129.45,129.41,3.8635]
[1725460092762,5.2671,129.45,129.41,7.78903356]
[1725460092965,1.4043,129.45,129.41,7.78903356]
[1725460093165,1.4043,129.45,129.41,3.8635]
[1725460093360,3.8631,129.44,129.41,3.8635]
[1725460093561,1.4043,129.45,129.41,0.05210194]
[1725460094066,3.8634,129.43,129.41,0.05210194]
[1725460094666,1.4043,129.45,129.41,3.91570194]
[1725460095668,3.863,129.44,129.41,7.84946983]
[1725460096167,3.8628,129.45,129.42,3.8635]
[1725460096371,1.3565,129.46,129.41,3.98586983]
[1725460096569,1.4015,129.49,129.42,37.13]
[1725460096874,3.8622,129.47,129.44,3.92041377]
[1725460097077,1.4346,129.49,129.44,37.18761377]
[1725460097468,5.2963,129.49,129.44,37.18761377]
[1725460097972,3.8613,129.5,129.44,37.18761377]
[1725460098474,3.8615,129.49,129.46,3.8621]
[1725460098779,227.0,129.52,129.46,3.92020203]
[1725460098978,37.13,129.52,129.46,0.05810203]
[1725460099271,2.7762,129.53,129.46,0.05810203]
[1725460099573,11.6131545,129.63,129.5,37.13]
[1725460099764,1.3349,129.58,129.54,0.05872159]
[1725460100373,3.8591,129.57,129.54,0.05872159]
[1725460100565,1.3349,129.58,129.54,0.05872159]
[1725460100978,3.8597,129.55,129.54,0.05872159]
[1725460101173,1.3349,129.58,129.54,0.05872159]
[1725460101674,3.8593,129.57,129.54,0.05872159]
[1725460101877,1.3349,129.58,129.54,0.05872159]
[1725460102377,1.3349,129.58,129.48,37.13]
[1725460102378,38.4649,129.58,129.48,37.13]
[1725460102683,38.4649,129.58,129.5,3.8609]
[1725460102684,3.8602,129.54,129.5,3.8609]
[1725460102987,38.4649,129.58,129.48,37.13]
[1725460103178,3.8607,129.52,129.49,3.8614]
[1725460103486,0.05100696,129.52,129.49,0.05501353]
[1725460104278,3.8608,129.51,129.49,0.05501353]
[1725460104477,0.05100696,129.52,129.49,0.05501353]
[1725460106080,0.05100696,129.52,129.5,3.8611]
[1725460106385,0.05100696,129.52,129.49,0.05501353]
[1725460106778,0.05100696,129.52,129.5,37.13]
[1725460107283,0.05100696,129.52,129.51,37.13]
[1725460107484,0.05100696,129.52,129.51,40.9908]
[1725460108483,3.8592,129.57,129.54,3.8598]
[1725460109280,3.8592,129.57,129.51,37.13]
[1725460109493,3.8592,129.57,129.53,0.05309578]
[1725460109687,3.8594,129.56,129.54,3.8598]
[1725460109896,3.8594,129.56,129.53,0.05309578]
[1725460110392,3.8594,129.56,129.53,3.91319578]
[1725460110590,3.8598,129.55,129.53,0.05309578]
[1725460111686,3.8595,129.56,129.53,3.91329578]
[1725460111888,1.3349,129.58,129.53,3.91329578]
[1725460112082,3.8597,129.55,129.53,0.05309578]
[1725460112593,1.3349,129.58,129.53,0.05309578]
[1725460114202,3.8598,129.55,129.53,0.05309578]
[1725460116192,3.8598,129.55,129.53,3.91329578]
[1725460116900,3.8598,129.55,129.48,3.87378452]
[1725460116901,37.13,129.55,129.48,3.87378452]
[1725460117090,37.13,129.55,129.45,1.3426]
[1725460117391,37.13,129.53,129.43,37.13]
[1725460117588,2.8059,129.52,129.43,37.13]
[1725460117788,37.13,129.51,129.43,37.13]
[1725460117992,0.05575943,129.49,129.46,0.05283322]
[1725460118389,3.862,129.47,129.46,0.05283322]
[1725460119093,3.8618,129.48,129.46,0.05283322]
[1725460119297,0.05575943,129.49,129.46,0.05283322]
[1725460119693,3.862,129.47,129.46,0.05283322]
[1725460120590,3.8628,129.45,129.41,37.13]
[1725460120897,6.68573628,129.52,129.41,40.99493586]
[1725460121092,2.8059,129.52,129.44,37.13]
[1725460121289,37.13,129.58,129.5,3.8609]
[1725460121596,3.86,129.54,129.53,0.05178197]
[1725460123394,3.8609,129.51,129.47,1.3743]
[1725460123699,3.8609,129.51,129.48,3.8617]
[1725460123906,3.8609,129.51,129.48,7.70090068]
[1725460124090,3.84561891,129.56,129.46,37.13]
[1725460124091,3.8612,129.5,129.46,37.13]
[1725460124295,37.13,129.55,129.47,0.05247363]
[1725460124494,3.8616,129.49,129.44,37.13]
[1725460124898,0.05094258,129.48,129.45,0.04931892]
[1725460125399,3.91274258,129.48,129.45,0.04931892]
[1725460125700,3.91274258,129.48,129.45,3.91181892]
[1725460125894,0.05094258,129.48,129.45,0.04931892]
[1725460126494,3.8623,129.47,129.45,0.04931892]
[1725460126900,0.05094258,129.48,129.45,0.04931892]
[1725460127799,3.90407816,129.48,129.45,0.04931892]
[1725460128099,37.13,129.47,129.38,37.13]
[1725460128298,3.8636,129.42,129.38,37.13]
[1725460128496,3.8636,129.42,129.38,40.98197663]
[1725460128702,38.5111,129.47,129.38,40.98197663]
[1725460129101,0.05843988,129.44,129.41,0.05645005]
[1725460129804,3.92163988,129.44,129.41,3.92025005]
[1725460130805,0.05843988,129.44,129.42,40.9934]
[1725460131010,0.05843988,129.44,129.42,37.13]
[1725460131703,0.05843988,129.44,129.43,40.9932]
[1725460133414,3.8617,129.49,129.43,37.13]
[1725460133909,3.8617,129.49,129.46,3.8621]
[1725460134112,3.8617,129.49,129.46,7.74867085]
[1725460134315,3.8619,129.48,129.46,0.04909458]
[1725460134610,3.8619,129.48,129.46,3.93759712]
[1725460135105,3.91992196,129.49,129.46,7.79979712]
[1725460136110,3.8619,129.48,129.46,3.93759712]
[1725460136308,0.05832196,129.49,129.46,3.93759712]
[1725460136708,3.91992196,129.49,129.46,7.79969712]
[1725460137319,3.91992196,129.49,129.47,3.862]
[1725460138020,0.05832196,129.49,129.48,3.8617]
[1725460138216,0.05832196,129.49,129.46,3.93759712]
[1725460138914,3.91992196,129.49,129.46,7.79979712]
[1725460139115,0.05832196,129.49,129.46,7.79979712]
[1725460139513,0.05832196,129.49,129.46,0.04909458]
[1725460139916,3.862,129.47,129.46,0.04909458]
[1725460141018,0.05832196,129.49,129.46,0.04909458]
[1725460141916,3.862,129.47,129.46,0.04909458]
[1725460142218,3.91992196,129.49,129.46,0.04909458]
[1725460142610,0.05832196,129.49,129.46,0.04909458]
[1725460142813,3.8618,129.48,129.46,3.91129458]
[1725460143017,0.05832196,129.49,129.46,3.91129458]
[1725460143214,0.05832196,129.49,129.47,3.8619]
[1725460143816,0.05832196,129.49,129.46,0.04909458]
[1725460144121,3.862,129.48,129.46,0.04909458]
[1725460144728,0.05832196,129.49,129.46,0.04909458]
[1725460144925,0.05832196,129.49,129.47,37.13]
[1725460145117,3.8604,129.53,129.5,3.8609]
[1725460145321,3.8979545,129.63,129.52,37.13]
[1725460145621,227.0,129.64,129.52,37.13]
[1725460145622,1.3165,129.6,129.52,37.13]
[1725460145815,3.8592,129.57,129.53,3.81998192]
[1725460146017,1.3165,129.6,129.52,37.13]
[1725460146322,0.05804352,129.57,129.55,0.05050783]
[1725460147534,0.05804352,129.57,129.55,3.91000783]
[1725460148317,0.05804352,129.57,129.55,0.05050783]
[1725460148919,3.8594,129.56,129.55,0.05050783]
[1725460149520,3.91724352,129.57,129.55,0.05050783]
[1725460150523,0.05804352,129.57,129.55,0.05050783]
[1725460151021,3.8594,129.56,129.55,0.05050783]
[1725460152328,3.91724352,129.57,129.55,0.05050783]
[1725460153628,0.05804352,129.57,129.55,0.05050783]
[1725460154126,3.8594,129.56,129.55,0.05050783]
[1725460160434,3.91724352,129.57,129.55,0.05050783]
[1725460160933,0.05804352,129.57,129.55,3.91000783]
[1725460161129,0.05804352,129.57,129.55,0.05050783]
[1725460161630,0.05804352,129.57,129.56,3.8594]
[1725460162031,0.05804352,129.57,129.55,3.91000783]
[1725460162428,0.05804352,129.57,129.55,0.05050783]
[1725460162628,0.05804352,129.57,129.56,3.8594]
[1725460163733,0.05804352,129.57,129.55,0.05050783]
[1725460164127,3.8594,129.56,129.55,0.05050783]
[1725460165837,3.8594,129.56,129.49,2.6761]
[1725460165838,3.8607,129.52,129.49,38.495]
[1725460166133,37.13,129.57,129.47,37.13]
[1725460166439,3.861,129.51,129.48,3.8616]
[1725460166937,0.05457851,129.51,129.48,0.05519693]
[1725460167247,3.8614,129.49,129.48,0.05519693]
[1725460167443,0.05457851,129.51,129.48,0.05519693]
[1725460168251,3.8614,129.49,129.48,0.05519693]
[1725460168451,0.05457851,129.51,129.48,0.05519693]
[1725460168645,3.8614,129.5,129.48,0.05519693]
[1725460169149,3.8614,129.49,129.48,0.05519693]
[1725460170548,0.05457851,129.51,129.48,0.05519693]
[1725460172458,3.8614,129.5,129.48,0.05519693]
[1725460174456,3.8614,129.49,129.48,0.05519693]
[1725460181163,3.8613,129.5,129.48,0.05519693]
[1725460181349,0.05457851,129.51,129.48,0.05519693]
[1725460181555,0.05457851,129.51,129.48,37.18519693]
[1725460182057,0.05457851,129.51,129.5,3.8611]
[1725460184958,0.05457851,129.51,129.5,40.9911]
[1725460185957,0.05457851,129.51,129.5,3.8611]
[1725460186160,0.05457851,129.51,129.48,0.05519693]
[1725460186463,3.91557851,129.51,129.48,0.05519693]
[1725460186761,3.91557851,129.51,129.48,3.91669693]
[1725460186762,0.05457851,129.51,129.48,3.91669693]
[1725460186949,3.8612,129.5,129.48,3.91669693]
[1725460187554,0.05457851,129.51,129.48,3.91669693]
[1725460187749,3.91557851,129.51,129.48,3.91669693]
[1725460188156,0.05457851,129.51,129.49,29.68]
[1725460189160,0.05457851,129.51,129.5,3.8611]
[1725460189557,1.4446,129.58,129.5,29.68]
[1725460189760,3.8598,129.55,129.53,3.8602]
[1725460189961,1.3987,129.6,129.54,33.50791036]
[1725460190158,1.4331,129.62,129.56,29.68]
[1725460190363,3.8584,129.6,129.57,3.8589]
[1725460190668,3.91308457,129.6,129.57,3.90902502]
[1725460190963,3.8586,129.59,129.57,3.97613741]
[1725460191762,3.8586,129.59,129.57,3.90922502]
[1725460192160,0.05468457,129.6,129.57,37.11012502]
[1725460192357,0.05468457,129.6,129.59,37.06]
[1725460192760,0.05468457,129.6,129.59,40.9185]
[1725460192961,0.05468457,129.6,129.57,37.11012502]
[1725460193271,0.05468457,129.6,129.58,3.8586]
[1725460193954,0.05468457,129.6,129.57,37.11012502]
[1725460193955,0.05468457,129.6,129.57,0.05012502]
[1725460195862,3.8586,129.59,129.57,0.05012502]
[1725460196262,0.05468457,129.6,129.57,3.90912502]
[1725460196565,0.05468457,129.6,129.57,0.05012502]
[1725460197065,227.0,129.73,129.59,37.06]
[1725460197266,1.88218943,129.72,129.66,37.06]
[1725460197473,1.88218943,129.72,129.6,2.6988]
[1725460197474,24.06124938,129.74,129.68,37.06]
[1725460197767,0.53593271,129.73,129.68,37.06]
[1725460197966,0.03922743,129.72,129.69,3.907146]
[1725460198162,0.03922743,129.72,129.69,0.051746]
[1725460198466,0.03922743,129.72,129.7,37.06]
[1725460199171,0.03922743,129.72,129.7,40.95262095]
[1725460199568,0.03922743,129.72,129.7,44.80772095]
[1725460199964,0.03922743,129.72,129.7,40.95262095]
[1725460200164,2.8413,129.81,129.71,37.06]
[1725460200367,2.8413,129.81,129.73,37.06]
[1725460200566,1.3428,129.83,129.73,37.06]
[1725460200777,37.59502279,129.82,129.74,3.89955735]
[1725460201066,0.53502279,129.81,129.73,37.06]
[1725460201271,37.06,129.82,129.73,37.06]
[1725460201469,0.53506776,129.81,129.76,0.05768057]
[1725460201673,3.853,129.78,129.77,0.05688125]
[1725460202769,40.98152994,129.8,129.71,37.06]
[1725460202975,37.06,129.77,129.69,3.78237018]
[1725460203269,3.8542,129.74,129.67,2.8221]
[1725460203473,1.3934,129.76,129.67,2.8221]
[1725460203768,0.05348019,129.73,129.7,0.05944157]
[1725460203971,3.89061775,129.73,129.7,0.05944157]
[1725460204166,40.95061775,129.73,129.7,0.05944157]
[1725460204468,40.89713756,129.73,129.62,39.7892]
[1725460204764,1.3934,129.76,129.66,37.06]
[1725460204972,0.53572117,129.75,129.68,37.06]
[1725460205278,1.3934,129.76,129.68,40.86359346]
[1725460205573,3.90638321,129.73,129.71,0.05481244]
[1725460205872,0.05198321,129.73,129.71,0.05481244]
[1725460206765,3.8546,129.72,129.71,0.05481244]
[1725460207168,3.76503701,129.73,129.64,37.06]
[1725460207372,37.06,129.74,129.64,37.06]
[1725460207667,37.06,129.74,129.65,3.8566]
[1725460207872,37.06,129.74,129.64,37.06]
[1725460208073,37.06,129.72,129.63,1.3831]
[1725460208270,0.05933382,129.69,129.66,0.05301473]
[1725460208865,3.8563,129.67,129.66,0.05301473]
[1725460209470,3.8559,129.68,129.66,0.05301473]
[1725460209970,3.8561,129.67,129.66,0.05301473]
[1725460210370,0.05933382,129.69,129.66,0.05301473]
[1725460210875,0.05933382,129.69,129.66,37.11301473]
[1725460211063,0.05933382,129.69,129.67,3.8559]
[1725460211271,0.05933382,129.69,129.68,40.90624286]
[1725460211576,0.05933382,129.69,129.68,40.9158]
[1725460211869,1.3934,129.76,129.68,40.9857059]
[1725460212673,3.8541,129.74,129.71,3.8548]
[1725460212970,3.90984683,129.74,129.71,3.9100727]
[1725460213175,0.05574683,129.74,129.72,3.8544]
[1725460213574,0.05574683,129.74,129.72,40.89962991]
[1725460213773,0.05574683,129.74,129.73,3.8543]
[1725460214177,0.05574683,129.74,129.73,40.9143]
[1725460214375,1.3469,129.84,129.73,37.06]
[1725460214575,229.7007,129.87,129.79,37.06]
[1725460214771,2.7007,129.87,129.79,37.06]
[1725460214967,2.7007,129.87,129.8,7.73866152]
[1725460215174,2.7007,129.87,129.8,3.88666152]
[1725460215467,0.05605461,129.85,129.82,0.05245021]
[1725460215876,8.04421235,129.98,129.83,37.06]
[1725460216080,1.3594,129.95,129.86,37.06]
[1725460216270,3.90246723,129.98,129.83,1.4385]
[1725460216271,0.53399377,129.94,129.89,3.8493]
[1725460216574,21.26450347,130.03,129.9,37.06]
[1725460216776,3.81033153,129.98,129.9,40.9092]
[1725460216973,3.81033153,129.98,129.9,40.98824926]
[1725460217171,21.26450347,130.03,129.93,0.05222136]
[1725460217368,3.7796357,129.99,129.9,40.98824926]
[1725460217568,3.7796357,129.99,129.9,37.06]
[1725460217773,3.8478,129.95,129.93,0.05498486]
[1725460217975,3.90630374,129.99,129.93,0.05498486]
[1725460218171,0.49223809,129.98,129.93,0.05498486]
[1725460218375,48.21931213,129.99,129.93,0.05498486]
[1725460218974,3.8481,129.94,129.93,0.05498486]
[1725460219882,3.92093409,129.95,129.85,44.38]
[1725460220071,1.4089,129.96,129.86,7.74288717]
[1725460220278,3.8488,129.92,129.86,7.74288717]
[1725460220583,1.4089,129.96,129.84,1.3302]
[1725460220584,44.38,129.94,129.84,1.3302]
[1725460220786,44.38,129.94,129.88,0.05200684]
[1725460220787,0.05498486,129.9,129.88,0.05200684]
[1725460221589,3.8496,129.89,129.88,0.05200684]
[1725460221882,37.43498486,129.94,129.88,0.05200684]
[1725460222286,3.8492,129.91,129.88,0.05200684]
[1725460222574,37.43498486,129.94,129.88,0.05200684]
[1725460224079,3.8496,129.89,129.88,0.05200684]
[1725460224782,37.43498486,129.94,129.88,0.05200684]
[1725460225076,49.6112939,129.96,129.88,0.05200684]
[1725460225282,49.6112939,129.96,129.91,0.05191232]
[1725460225585,1.4089,129.96,129.91,0.05191232]
[1725460225977,148.18205536,130.01,129.91,3.82289483]
[1725460226178,1.88086908,130.0,129.95,0.05868887]
[1725460226378,1.3887,130.0,129.95,0.05868887]
[1725460228381,3.8475,129.96,129.95,0.05868887]
[1725460229178,44.38,129.98,129.88,5.22975346]
[1725460229179,3.8488,129.92,129.88,5.22975346]
[1725460229383,44.38,129.98,129.88,1.335]
[1725460229887,44.38,129.98,129.88,5.17451836]
[1725460230180,0.05330068,129.94,129.92,0.05462054]
[1725460230387,3.8484,129.93,129.92,0.05462054]
[1725460230786,3.8497,129.89,129.83,47.0579]
[1725460230984,3.8497,129.89,129.85,3.8505]
[1725460231181,3.8497,129.89,129.83,47.0579]
[1725460231378,271.38,130.0,129.87,44.38]
[1725460231379,44.38,129.98,129.87,44.38]
[1725460231579,227.0,130.0,129.91,44.38]
[1725460231784,0.05140973,129.97,129.94,0.058998]
[1725460232083,0.05140973,129.97,129.94,3.906798]
[1725460232287,0.05140973,129.97,129.94,0.058998]
[1725460232680,0.05140973,129.97,129.94,7.81726897]
[1725460233095,0.05140973,129.97,129.94,3.96936897]
[1725460233283,0.05140973,129.97,129.95,3.8475]
[1725460233591,227.0,130.11,129.95,44.38]
[1725460233815,1.88972886,130.1,130.0,44.38]
[1725460234091,0.49152886,130.09,130.0,44.38]
[1725460234291,0.49152886,130.09,130.01,3.8458]
[1725460234489,3.8448,130.05,130.0,44.38]
[1725460234684,0.05741489,130.04,130.01,0.05685231]
[1725460234989,3.90281489,130.04,129.97,44.38]
[1725460235187,3.85613186,130.06,130.01,0.05246491]
[1725460235382,44.38,130.09,129.99,3.8465]
[1725460235582,0.05777892,130.05,130.02,0.05081595]
[1725460235786,3.8454,130.03,130.02,0.05081595]
[1725460236391,5.2092,130.04,130.02,0.05081595]
[1725460236888,0.05777892,130.05,130.02,0.05081595]
[1725460237090,3.8451,130.04,130.02,0.05081595]
[1725460237292,0.05777892,130.05,130.02,0.05081595]
[1725460237587,0.05777892,130.05,130.02,44.43081595]
[1725460237792,0.05777892,130.05,130.02,48.27631595]
[1725460237993,0.05777892,130.05,130.02,0.05081595]
[1725460238292,0.05777892,130.05,130.03,3.8452]
[1725460238487,0.05777892,130.05,130.02,0.05081595]
[1725460238993,0.05777892,130.05,130.02,1.47681595]
[1725460240092,0.05777892,130.05,130.02,5.32251595]
[1725460240285,0.05777892,130.05,130.02,1.47681595]
[1725460240991,0.05777892,130.05,130.03,44.38]
[1725460242793,0.05777892,130.05,130.03,48.2252]
[1725460243094,0.05777892,130.05,130.02,1.47681595]
[1725460243890,0.05777892,130.05,130.02,0.05081595]
[1725460244285,3.8454,130.03,130.02,0.05081595]
[1725460246688,3.8452,130.04,130.02,0.05081595]
[1725460246897,0.05777892,130.05,130.02,0.05081595]
[1725460247588,0.05777892,130.05,130.02,44.43081595]
[1725460247789,0.05777892,130.05,130.02,49.72131595]
[1725460248100,0.05777892,130.05,130.02,45.87581595]
[1725460248295,3.8436,130.09,130.05,3.8446]
[1725460248697,47.1662,130.14,130.04,44.38]
[1725460248698,2.7862,130.14,130.04,44.38]
[1725460249007,47.1662,130.14,130.04,44.38]
[1725460249501,47.1662,130.14,130.01,3.86648711]
[1725460249502,44.38,130.1,129.98,44.38]
[1725460249707,2.7862,130.14,129.98,44.38]
[1725460249907,3.8453,130.04,129.99,3.8074873]
[1725460250198,227.0,130.12,130.0,44.38]
[1725460250398,44.38,130.13,130.0,44.38]
[1725460250602,0.04908243,130.08,130.05,0.05693792]
[1725460250792,3.98540895,130.08,130.05,0.05195268]
[1725460251098,3.8448,130.06,130.05,0.05195268]
[1725460251499,0.04908243,130.08,130.05,0.05195268]
[1725460252105,0.04908243,130.08,130.06,3.79056514]
[1725460252292,0.04908243,130.08,130.05,5.24145268]
[1725460252811,1.4271,130.14,130.06,44.38]
[1725460253101,18.21167089,130.24,130.09,44.38]
[1725460253102,1.3741,130.18,130.09,44.38]
[1725460253300,0.49046909,130.17,130.09,44.38]
[1725460253502,0.49046909,130.17,130.1,3.8431]
[1725460253897,4.4202575,130.17,130.12,0.0553523]
[1725460254098,3.8425,130.13,130.12,0.0553523]
[1725460254800,5.30725273,130.18,130.12,0.0553523]
[1725460255198,1.429,130.18,130.12,0.0553523]
[1725460255398,3.75527669,130.2,130.12,0.0553523]